[Event "December 12 Early 2023"]
[Site "https://www.chess.com"]
[Date "2023.12.12"]
[Round "7"]
[White "Clawitter, Craig"]
[Black "Reinecke, Katharina"]
[Result "1-0"]
[Board "167"]
[TimeControl "180+1"]
[WhiteFideId "2023105"]
[BlackFideId "12929727"]
[WhiteElo "2229"]
[BlackElo "2015"]
[WhiteTeam "USA"]
[BlackTeam "GER"]
[WhiteClock "0:00:01"]
[BlackClock "0:00:00"]

1. e4 {[%clk 0:03:00]}  c6 {[%clk 0:02:59]} 2. d4 {[%clk 0:03:00]}  d5 {[%clk 0:02:54]} 3. e5 {[%clk 0:03:01]}  Bf5 {[%clk 0:02:52]} 4. Nf3 {[%clk 0:03:01]}  e6 {[%clk 0:02:52]} 5. Be2 {[%clk 0:03:01]}  c5 {[%clk 0:02:46]} 6. Be3 {[%clk 0:03:00]}  Nc6 {[%clk 0:02:45]} 7. dxc5 {[%clk 0:03:00]}  Nge7 {[%clk 0:02:43]} 8. O-O {[%clk 0:02:58]}  Ng6 {[%clk 0:02:32]} 9. c4 {[%clk 0:02:30]}  Ngxe5 {[%clk 0:02:26]} 10. Nxe5 {[%clk 0:02:31]}  Nxe5 {[%clk 0:02:23]} 11. cxd5 {[%clk 0:02:29]}  Qxd5 {[%clk 0:02:09]} 12. Qa4+ {[%clk 0:02:25]}  Nc6 {[%clk 0:02:01]} 13. Nc3 {[%clk 0:02:18]}  Qd8 {[%clk 0:01:43]} 14. Bf3 {[%clk 0:01:54]}  Rc8 {[%clk 0:01:38]} 15. Rfd1 {[%clk 0:01:51]}  Qf6 {[%clk 0:01:27]} 16. Nb5 {[%clk 0:01:25]}  Be7 {[%clk 0:01:14]} 17. Nxa7 {[%clk 0:01:22]}  O-O {[%clk 0:01:05]} 18. Nxc8 {[%clk 0:01:14]}  Rxc8 {[%clk 0:01:05]} 19. Bxc6 {[%clk 0:00:57]}  Rxc6 {[%clk 0:01:00]} 20. Qa8+ {[%clk 0:00:51]}  Bf8 {[%clk 0:00:57]} 21. Rd8 {[%clk 0:00:44]}  Qe7 {[%clk 0:00:49]} 22. b4 {[%clk 0:00:13]}  Rc7 {[%clk 0:00:46]} 23. Bf4 {[%clk 0:00:12]}  Rd7 {[%clk 0:00:45]} 24. Rxd7 {[%clk 0:00:11]}  Qxd7 {[%clk 0:00:45]} 25. Bd6 {[%clk 0:00:11]}  h5 {[%clk 0:00:23]} 26. Qxf8+ {[%clk 0:00:11]}  Kh7 {[%clk 0:00:23]} 27. Qe7 {[%clk 0:00:11]}  Qb5 {[%clk 0:00:18]} 28. Qxf7 {[%clk 0:00:10]}  Qd3 {[%clk 0:00:16]} 29. Qxh5+ {[%clk 0:00:09]}  Kg8 {[%clk 0:00:15]} 30. Qe8+ {[%clk 0:00:09]}  Kh7 {[%clk 0:00:15]} 31. h3 {[%clk 0:00:07]}  Qc3 {[%clk 0:00:14]} 32. Qh5+ {[%clk 0:00:05]}  Kg8 {[%clk 0:00:13]} 33. Qd1 {[%clk 0:00:04]}  Qxb4 {[%clk 0:00:11]} 34. Rc1 {[%clk 0:00:03]}  Be4 {[%clk 0:00:10]} 35. f3 {[%clk 0:00:02]}  Bd5 {[%clk 0:00:09]} 36. Qe1 {[%clk 0:00:02]}  Qd4+ {[%clk 0:00:08]} 37. Kh2 {[%clk 0:00:02]}  Qf6 {[%clk 0:00:08]} 38. Qe5 {[%clk 0:00:02]}  Qg6 {[%clk 0:00:07]} 39. Re1 {[%clk 0:00:02]}  Qh6 {[%clk 0:00:06]} 40. Qg3 {[%clk 0:00:01]}  Qf6 {[%clk 0:00:05]} 41. Re5 {[%clk 0:00:01]}  Qf7 {[%clk 0:00:00]} 42. Rg5 {[%clk 0:00:01]} 1-0

[Event "December 12 Early 2023"]
[Site "https://www.chess.com"]
[Date "2023.12.12"]
[Round "7"]
[White "Gazineu Neto, Rubens"]
[Black "Borawski, Jakub"]
[Result "0-1"]
[Board "169"]
[TimeControl "180+1"]
[WhiteFideId "2174685"]
[BlackFideId "1143000"]
[WhiteElo "1971"]
[BlackElo "2209"]
[WhiteTeam "BRA"]
[BlackTeam "POL"]
[WhiteClock "0:00:00"]
[BlackClock "0:01:27"]

1. e4 {[%clk 0:03:00]}  e5 {[%clk 0:02:59]} 2. Nf3 {[%clk 0:03:00]}  Nc6 {[%clk 0:03:00]} 3. Bb5 {[%clk 0:03:00]}  a6 {[%clk 0:03:00]} 4. Ba4 {[%clk 0:03:00]}  Nf6 {[%clk 0:03:00]} 5. O-O {[%clk 0:02:59]}  Be7 {[%clk 0:03:01]} 6. Re1 {[%clk 0:02:59]}  b5 {[%clk 0:03:00]} 7. Bb3 {[%clk 0:03:00]}  O-O {[%clk 0:02:59]} 8. a4 {[%clk 0:03:00]}  b4 {[%clk 0:02:57]} 9. a5 {[%clk 0:03:00]}  d6 {[%clk 0:02:57]} 10. c3 {[%clk 0:02:46]}  Rb8 {[%clk 0:02:56]} 11. h3 {[%clk 0:02:45]}  Nd7 {[%clk 0:02:45]} 12. d4 {[%clk 0:02:40]}  Bf6 {[%clk 0:02:42]} 13. Be3 {[%clk 0:02:25]}  Re8 {[%clk 0:02:39]} 14. Nbd2 {[%clk 0:02:11]}  bxc3 {[%clk 0:02:36]} 15. bxc3 {[%clk 0:02:10]}  exd4 {[%clk 0:02:32]} 16. cxd4 {[%clk 0:02:04]}  Nb4 {[%clk 0:02:32]} 17. Bc4 {[%clk 0:01:49]}  c5 {[%clk 0:02:30]} 18. Qb3 {[%clk 0:01:12]}  Rf8 {[%clk 0:02:23]} 19. Ra4 {[%clk 0:00:53]}  Nc6 {[%clk 0:02:23]} 20. Qd3 {[%clk 0:00:43]}  cxd4 {[%clk 0:02:13]} 21. Nxd4 {[%clk 0:00:24]}  Nxa5 {[%clk 0:02:06]} 22. Bxa6 {[%clk 0:00:17]}  Nc5 {[%clk 0:02:04]} 23. Qc3 {[%clk 0:00:05]}  Nxa4 {[%clk 0:02:02]} 24. Qa3 {[%clk 0:00:02]}  Bxa6 {[%clk 0:01:56]} 25. Qxa4 {[%clk 0:00:02]}  Bxd4 {[%clk 0:01:34]} 26. Bxd4 {[%clk 0:00:02]}  Bb5 {[%clk 0:01:32]} 27. Qa1 {[%clk 0:00:01]}  f6 {[%clk 0:01:29]} 28. Nf3 {[%clk 0:00:00]}  Kh8 {[%clk 0:01:27]} 0-1

[Event "December 12 Early 2023"]
[Site "https://www.chess.com"]
[Date "2023.12.12"]
[Round "7"]
[White "Llari, Marc"]
[Black "Olcayoz, Gizem"]
[Result "1-0"]
[Board "174"]
[TimeControl "180+1"]
[WhiteFideId "651044269"]
[BlackFideId "6301444"]
[WhiteElo "2281"]
[BlackElo "2027"]
[WhiteTeam "FRA"]
[BlackTeam "TUR"]
[WhiteClock "0:02:13"]
[BlackClock "0:00:08"]

1. d4 {[%clk 0:03:00]}  e6 {[%clk 0:03:00]} 2. Nf3 {[%clk 0:03:00]}  f5 {[%clk 0:03:00]} 3. g3 {[%clk 0:03:00]}  Nf6 {[%clk 0:03:00]} 4. Bg2 {[%clk 0:03:01]}  Be7 {[%clk 0:03:01]} 5. O-O {[%clk 0:03:02]}  d6 {[%clk 0:03:01]} 6. c4 {[%clk 0:03:02]}  O-O {[%clk 0:03:01]} 7. Nc3 {[%clk 0:03:03]}  Ne4 {[%clk 0:03:02]} 8. Nxe4 {[%clk 0:03:01]}  fxe4 {[%clk 0:03:03]} 9. Nd2 {[%clk 0:03:02]}  d5 {[%clk 0:03:03]} 10. b3 {[%clk 0:02:56]}  Nc6 {[%clk 0:03:01]} 11. e3 {[%clk 0:02:56]}  Bd7 {[%clk 0:02:57]} 12. a3 {[%clk 0:02:53]}  Be8 {[%clk 0:02:56]} 13. f3 {[%clk 0:02:49]}  Bg5 {[%clk 0:02:37]} 14. f4 {[%clk 0:02:48]}  Be7 {[%clk 0:02:31]} 15. Qc2 {[%clk 0:02:47]}  Bh5 {[%clk 0:02:27]} 16. c5 {[%clk 0:02:46]}  Qe8 {[%clk 0:02:21]} 17. b4 {[%clk 0:02:46]}  Be2 {[%clk 0:02:18]} 18. Re1 {[%clk 0:02:45]}  Bd3 {[%clk 0:02:18]} 19. Qc3 {[%clk 0:02:45]}  Qh5 {[%clk 0:02:17]} 20. Bf1 {[%clk 0:02:45]}  Bxf1 {[%clk 0:02:16]} 21. Nxf1 {[%clk 0:02:45]}  Qg4 {[%clk 0:02:15]} 22. b5 {[%clk 0:02:45]}  Nd8 {[%clk 0:02:14]} 23. Ra2 {[%clk 0:02:45]}  c6 {[%clk 0:02:13]} 24. a4 {[%clk 0:02:45]}  h5 {[%clk 0:02:12]} 25. Rg2 {[%clk 0:02:43]}  g5 {[%clk 0:02:11]} 26. fxg5 {[%clk 0:02:41]}  Bxg5 {[%clk 0:02:10]} 27. Ree2 {[%clk 0:02:40]}  Kh7 {[%clk 0:02:03]} 28. Ref2 {[%clk 0:02:40]}  Nf7 {[%clk 0:02:00]} 29. Qd2 {[%clk 0:02:37]}  Nh6 {[%clk 0:02:00]} 30. Qe2 {[%clk 0:02:37]}  Kg7 {[%clk 0:01:39]} 31. Qxg4 {[%clk 0:02:32]}  Nxg4 {[%clk 0:01:38]} 32. Rxf8 {[%clk 0:02:32]}  Rxf8 {[%clk 0:01:39]} 33. h3 {[%clk 0:02:32]}  Nh6 {[%clk 0:01:23]} 34. Bd2 {[%clk 0:02:25]}  Rf3 {[%clk 0:01:23]} 35. Rf2 {[%clk 0:02:24]}  Rxf2 {[%clk 0:01:17]} 36. Kxf2 {[%clk 0:02:25]}  Nf5 {[%clk 0:01:17]} 37. g4 {[%clk 0:02:22]}  hxg4 {[%clk 0:01:14]} 38. hxg4 {[%clk 0:02:22]}  Nh4 {[%clk 0:01:15]} 39. Nh2 {[%clk 0:02:21]}  Kf6 {[%clk 0:01:14]} 40. Be1 {[%clk 0:02:21]}  Ng6 {[%clk 0:01:09]} 41. Ke2 {[%clk 0:02:20]}  Bh6 {[%clk 0:01:03]} 42. Bg3 {[%clk 0:02:17]}  Bg5 {[%clk 0:00:55]} 43. Bb8 {[%clk 0:02:16]}  a6 {[%clk 0:00:55]} 44. bxc6 {[%clk 0:02:16]}  bxc6 {[%clk 0:00:55]} 45. Bc7 {[%clk 0:02:15]}  Bh4 {[%clk 0:00:51]} 46. Bd8+ {[%clk 0:02:13]}  Kf7 {[%clk 0:00:49]} 47. Bxh4 {[%clk 0:02:12]}  Nxh4 {[%clk 0:00:50]} 48. Nf1 {[%clk 0:02:12]}  Kg6 {[%clk 0:00:50]} 49. Nd2 {[%clk 0:02:12]}  Kg5 {[%clk 0:00:49]} 50. Nb3 {[%clk 0:02:11]}  Kxg4 {[%clk 0:00:31]} 51. Na5 {[%clk 0:02:12]}  Nf3 {[%clk 0:00:31]} 52. Nxc6 {[%clk 0:02:11]}  Ng1+ {[%clk 0:00:31]} 53. Kf2 {[%clk 0:02:11]}  Nh3+ {[%clk 0:00:31]} 54. Kg2 {[%clk 0:02:09]}  Ng5 {[%clk 0:00:23]} 55. Ne5+ {[%clk 0:02:08]}  Kf5 {[%clk 0:00:21]} 56. Kf2 {[%clk 0:02:08]}  Nh3+ {[%clk 0:00:16]} 57. Ke2 {[%clk 0:02:07]}  Ng1+ {[%clk 0:00:14]} 58. Kd2 {[%clk 0:02:07]}  Nf3+ {[%clk 0:00:13]} 59. Nxf3 {[%clk 0:02:05]}  exf3 {[%clk 0:00:14]} 60. Ke1 {[%clk 0:02:06]}  Ke4 {[%clk 0:00:11]} 61. Kf2 {[%clk 0:02:07]}  Kd3 {[%clk 0:00:10]} 62. c6 {[%clk 0:02:06]}  Kc4 {[%clk 0:00:08]} 63. c7 {[%clk 0:02:07]}  Kb4 {[%clk 0:00:09]} 64. c8=Q {[%clk 0:02:08]}  Kxa4 {[%clk 0:00:10]} 65. Qxe6 {[%clk 0:02:08]}  a5 {[%clk 0:00:10]} 66. Qxd5 {[%clk 0:02:09]}  Kb4 {[%clk 0:00:10]} 67. Kxf3 {[%clk 0:02:10]}  a4 {[%clk 0:00:10]} 68. Ke2 {[%clk 0:02:11]}  a3 {[%clk 0:00:11]} 69. Qa2 {[%clk 0:02:11]}  Kc3 {[%clk 0:00:11]} 70. d5 {[%clk 0:02:12]}  Kb4 {[%clk 0:00:08]} 71. d6 {[%clk 0:02:13]} 1-0

[Event "December 12 Early 2023"]
[Site "https://www.chess.com"]
[Date "2023.12.12"]
[Round "7"]
[White "Omariev, Maksim"]
[Black "Kleibel, Uwe"]
[Result "1-0"]
[Board "176"]
[TimeControl "180+1"]
[WhiteFideId "4193423"]
[BlackFideId "1270982"]
[WhiteElo "2479"]
[BlackElo "2315"]
[WhiteTeam "RUS"]
[BlackTeam "GER"]
[WhiteClock "0:00:15"]
[BlackClock "0:00:48"]

1. g4 {[%clk 0:02:40]}  d5 {[%clk 0:02:59]} 2. Bg2 {[%clk 0:02:32]}  Bxg4 {[%clk 0:02:58]} 3. c4 {[%clk 0:02:31]}  c6 {[%clk 0:02:53]} 4. Qb3 {[%clk 0:02:29]}  Nf6 {[%clk 0:02:45]} 5. Qxb7 {[%clk 0:02:26]}  Nbd7 {[%clk 0:02:45]} 6. Nc3 {[%clk 0:02:10]}  e6 {[%clk 0:02:28]} 7. h3 {[%clk 0:02:01]}  Bf5 {[%clk 0:02:22]} 8. d4 {[%clk 0:01:59]}  Qc8 {[%clk 0:02:18]} 9. Qxc8+ {[%clk 0:01:46]}  Rxc8 {[%clk 0:02:19]} 10. Bf4 {[%clk 0:01:25]}  h6 {[%clk 0:02:14]} 11. Nf3 {[%clk 0:01:17]}  Bb4 {[%clk 0:02:08]} 12. Rc1 {[%clk 0:01:07]}  dxc4 {[%clk 0:02:03]} 13. O-O {[%clk 0:01:04]}  Nd5 {[%clk 0:02:01]} 14. Bd2 {[%clk 0:00:59]}  Nxc3 {[%clk 0:01:53]} 15. Bxc3 {[%clk 0:00:54]}  Bxc3 {[%clk 0:01:49]} 16. Rxc3 {[%clk 0:00:55]}  Nb6 {[%clk 0:01:46]} 17. Ne5 {[%clk 0:00:55]}  c5 {[%clk 0:01:42]} 18. Bc6+ {[%clk 0:00:41]}  Ke7 {[%clk 0:01:42]} 19. dxc5 {[%clk 0:00:41]}  f6 {[%clk 0:01:34]} 20. cxb6 {[%clk 0:00:26]}  fxe5 {[%clk 0:01:31]} 21. Rxc4 {[%clk 0:00:24]}  axb6 {[%clk 0:01:32]} 22. Rfc1 {[%clk 0:00:22]}  Bxh3 {[%clk 0:01:27]} 23. Rb4 {[%clk 0:00:21]}  Rb8 {[%clk 0:01:22]} 24. Rc3 {[%clk 0:00:20]}  Bf5 {[%clk 0:01:22]} 25. Rcb3 {[%clk 0:00:20]}  h5 {[%clk 0:01:16]} 26. Rxb6 {[%clk 0:00:19]}  Rxb6 {[%clk 0:01:17]} 27. Rxb6 {[%clk 0:00:20]}  h4 {[%clk 0:01:18]} 28. a4 {[%clk 0:00:19]}  h3 {[%clk 0:01:18]} 29. Kh2 {[%clk 0:00:19]}  Kd6 {[%clk 0:01:12]} 30. a5 {[%clk 0:00:19]}  Kc5 {[%clk 0:01:12]} 31. b4+ {[%clk 0:00:18]}  Kc4 {[%clk 0:01:08]} 32. a6 {[%clk 0:00:17]}  e4 {[%clk 0:00:48]} 33. a7 {[%clk 0:00:15]} 1-0

[Event "December 12 Early 2023"]
[Site "https://www.chess.com"]
[Date "2023.12.12"]
[Round "7"]
[White "Pein, Jonathan"]
[Black "Golubenko, Valentina"]
[Result "0-1"]
[Board "177"]
[TimeControl "180+1"]
[WhiteFideId "417092"]
[BlackFideId "4501993"]
[WhiteElo "2364"]
[BlackElo "2237"]
[WhiteTeam "ENG"]
[BlackTeam "CRO"]
[WhiteClock "0:00:41"]
[BlackClock "0:00:24"]

1. Nf3 {[%clk 0:03:00]}  d5 {[%clk 0:02:57]} 2. e3 {[%clk 0:03:00]}  c6 {[%clk 0:02:57]} 3. d4 {[%clk 0:03:00]}  g6 {[%clk 0:02:57]} 4. c4 {[%clk 0:02:56]}  Bg7 {[%clk 0:02:57]} 5. Nbd2 {[%clk 0:02:56]}  Nf6 {[%clk 0:02:55]} 6. b3 {[%clk 0:02:56]}  O-O {[%clk 0:02:54]} 7. Bb2 {[%clk 0:02:57]}  e6 {[%clk 0:02:54]} 8. Bd3 {[%clk 0:02:52]}  Nbd7 {[%clk 0:02:54]} 9. O-O {[%clk 0:02:52]}  c5 {[%clk 0:02:54]} 10. Qe2 {[%clk 0:02:48]}  b6 {[%clk 0:02:54]} 11. e4 {[%clk 0:02:46]}  dxe4 {[%clk 0:02:46]} 12. Nxe4 {[%clk 0:02:47]}  Bb7 {[%clk 0:02:42]} 13. Nd6 {[%clk 0:02:44]}  Bxf3 {[%clk 0:02:35]} 14. Qxf3 {[%clk 0:02:43]}  cxd4 {[%clk 0:02:33]} 15. Bxd4 {[%clk 0:02:41]}  e5 {[%clk 0:02:27]} 16. Bb2 {[%clk 0:02:36]}  Nc5 {[%clk 0:02:27]} 17. Bxe5 {[%clk 0:02:28]}  Ncd7 {[%clk 0:02:14]} 18. Bb2 {[%clk 0:02:23]}  Nc5 {[%clk 0:02:13]} 19. Ba3 {[%clk 0:02:19]}  Qxd6 {[%clk 0:02:10]} 20. Rad1 {[%clk 0:02:16]}  Qc7 {[%clk 0:01:58]} 21. b4 {[%clk 0:02:11]}  Nxd3 {[%clk 0:01:57]} 22. Rxd3 {[%clk 0:02:07]}  Nd7 {[%clk 0:01:54]} 23. Rd5 {[%clk 0:01:51]}  Ne5 {[%clk 0:01:51]} 24. Qg3 {[%clk 0:01:49]}  Rac8 {[%clk 0:01:40]} 25. c5 {[%clk 0:01:44]}  Nc4 {[%clk 0:01:31]} 26. Qb3 {[%clk 0:01:32]}  b5 {[%clk 0:01:24]} 27. Bc1 {[%clk 0:01:30]}  Rfd8 {[%clk 0:01:19]} 28. Rd3 {[%clk 0:01:27]}  Rxd3 {[%clk 0:01:18]} 29. Qxd3 {[%clk 0:01:28]}  Rd8 {[%clk 0:01:17]} 30. Qe2 {[%clk 0:01:24]}  Qe5 {[%clk 0:01:09]} 31. Qc2 {[%clk 0:01:21]}  Qc3 {[%clk 0:01:07]} 32. Qe4 {[%clk 0:01:13]}  Qxb4 {[%clk 0:01:02]} 33. Bg5 {[%clk 0:01:12]}  Rc8 {[%clk 0:00:58]} 34. Be7 {[%clk 0:01:09]}  Re8 {[%clk 0:00:47]} 35. Rd1 {[%clk 0:01:02]}  Bf8 {[%clk 0:00:29]} 36. c6 {[%clk 0:00:43]}  Rxe7 {[%clk 0:00:25]} 37. Qd5 {[%clk 0:00:42]}  Re1+ {[%clk 0:00:24]} 38. Rxe1 {[%clk 0:00:41]}  Qxe1# {[%clk 0:00:24]} 0-1

[Event "December 12 Early 2023"]
[Site "https://www.chess.com"]
[Date "2023.12.12"]
[Round "8"]
[White "Nepomniachtchi, Ian"]
[Black "Zakhartsov, Vladimir"]
[Result "1-0"]
[Board "2"]
[TimeControl "180+1"]
[WhiteFideId "4168119"]
[BlackFideId "4145097"]
[WhiteElo "3110"]
[BlackElo "2930"]
[WhiteTeam "RUS"]
[BlackTeam "RUS"]
[WhiteClock "0:00:27"]
[BlackClock "0:00:09"]

1. e4 {[%clk 0:02:47]}  c5 {[%clk 0:02:59]} 2. Nf3 {[%clk 0:02:46]}  Nc6 {[%clk 0:02:59]} 3. d4 {[%clk 0:02:47]}  cxd4 {[%clk 0:03:00]} 4. Nxd4 {[%clk 0:02:48]}  g6 {[%clk 0:02:57]} 5. c4 {[%clk 0:02:48]}  Nf6 {[%clk 0:02:57]} 6. Nc3 {[%clk 0:02:47]}  d6 {[%clk 0:02:57]} 7. Be2 {[%clk 0:02:46]}  Nxd4 {[%clk 0:02:57]} 8. Qxd4 {[%clk 0:02:46]}  Bg7 {[%clk 0:02:58]} 9. Bg5 {[%clk 0:02:44]}  O-O {[%clk 0:02:57]} 10. O-O {[%clk 0:02:41]}  Be6 {[%clk 0:02:56]} 11. Qd2 {[%clk 0:02:41]}  Rc8 {[%clk 0:02:47]} 12. b3 {[%clk 0:02:41]}  a6 {[%clk 0:02:45]} 13. Rac1 {[%clk 0:02:33]}  Re8 {[%clk 0:02:45]} 14. Rfd1 {[%clk 0:02:27]}  Qa5 {[%clk 0:02:43]} 15. Be3 {[%clk 0:02:16]}  Nd7 {[%clk 0:02:31]} 16. Bd4 {[%clk 0:02:11]}  Ne5 {[%clk 0:02:15]} 17. f4 {[%clk 0:02:02]}  Nc6 {[%clk 0:02:11]} 18. Bxg7 {[%clk 0:02:01]}  Kxg7 {[%clk 0:02:11]} 19. Kh1 {[%clk 0:01:58]}  f6 {[%clk 0:02:08]} 20. Qe3 {[%clk 0:01:53]}  Bf7 {[%clk 0:01:58]} 21. Bg4 {[%clk 0:01:50]}  Rcd8 {[%clk 0:01:58]} 22. Qf2 {[%clk 0:01:24]}  Qc5 {[%clk 0:01:46]} 23. Qxc5 {[%clk 0:01:23]}  dxc5 {[%clk 0:01:46]} 24. Bd7 {[%clk 0:01:24]}  Rf8 {[%clk 0:01:28]} 25. Bxc6 {[%clk 0:01:24]}  bxc6 {[%clk 0:01:29]} 26. Na4 {[%clk 0:01:24]}  Rd4 {[%clk 0:01:27]} 27. Nxc5 {[%clk 0:01:23]}  Rfd8 {[%clk 0:01:28]} 28. Rxd4 {[%clk 0:01:23]}  Rxd4 {[%clk 0:01:29]} 29. Kg1 {[%clk 0:01:10]}  a5 {[%clk 0:01:28]} 30. Rc2 {[%clk 0:01:10]}  a4 {[%clk 0:01:23]} 31. bxa4 {[%clk 0:00:49]}  Bxc4 {[%clk 0:01:12]} 32. Kf2 {[%clk 0:00:49]}  e5 {[%clk 0:01:06]} 33. fxe5 {[%clk 0:00:48]}  fxe5 {[%clk 0:01:07]} 34. Ke3 {[%clk 0:00:48]}  Kf6 {[%clk 0:01:05]} 35. a5 {[%clk 0:00:47]}  Ke7 {[%clk 0:00:41]} 36. a6 {[%clk 0:00:45]}  Bb5 {[%clk 0:00:39]} 37. a7 {[%clk 0:00:41]}  Rd8 {[%clk 0:00:39]} 38. a4 {[%clk 0:00:40]}  Bf1 {[%clk 0:00:33]} 39. Kf2 {[%clk 0:00:30]}  Rf8+ {[%clk 0:00:33]} 40. Ke1 {[%clk 0:00:27]}  Bxg2 {[%clk 0:00:12]} 41. Rxg2 {[%clk 0:00:27]}  Ra8 {[%clk 0:00:13]} 42. Kd2 {[%clk 0:00:27]}  Rxa7 {[%clk 0:00:09]} 43. Kc3 {[%clk 0:00:27]} 1-0

[Event "December 12 Early 2023"]
[Site "https://www.chess.com"]
[Date "2023.12.12"]
[Round "8"]
[White "Ashraf, Artin"]
[Black "Le, Tuan Minh"]
[Result "0-1"]
[Board "3"]
[TimeControl "180+1"]
[WhiteFideId "22514805"]
[BlackFideId "12401153"]
[WhiteElo "2913"]
[BlackElo "3078"]
[WhiteTeam "IRI"]
[BlackTeam "VIE"]
[WhiteClock "0:01:27"]
[BlackClock "0:02:14"]

1. Nf3 {[%clk 0:02:56]}  d5 {[%clk 0:02:57]} 2. e3 {[%clk 0:02:56]}  Nf6 {[%clk 0:02:54]} 3. c4 {[%clk 0:02:55]}  c6 {[%clk 0:02:55]} 4. Nc3 {[%clk 0:02:51]}  a6 {[%clk 0:02:55]} 5. d4 {[%clk 0:02:41]}  Bf5 {[%clk 0:02:55]} 6. Nh4 {[%clk 0:02:37]}  Be4 {[%clk 0:02:51]} 7. f3 {[%clk 0:02:36]}  Bg6 {[%clk 0:02:51]} 8. Nxg6 {[%clk 0:02:36]}  hxg6 {[%clk 0:02:52]} 9. Qb3 {[%clk 0:02:33]}  Ra7 {[%clk 0:02:52]} 10. Bd2 {[%clk 0:02:32]}  e6 {[%clk 0:02:52]} 11. O-O-O {[%clk 0:02:26]}  dxc4 {[%clk 0:02:52]} 12. Bxc4 {[%clk 0:02:26]}  b5 {[%clk 0:02:53]} 13. Be2 {[%clk 0:02:26]}  c5 {[%clk 0:02:54]} 14. dxc5 {[%clk 0:02:15]}  Bxc5 {[%clk 0:02:55]} 15. Kb1 {[%clk 0:02:15]}  Rd7 {[%clk 0:02:48]} 16. Bc1 {[%clk 0:02:12]}  O-O {[%clk 0:02:47]} 17. h4 {[%clk 0:02:08]}  Qb6 {[%clk 0:02:44]} 18. Rxd7 {[%clk 0:01:50]}  Nbxd7 {[%clk 0:02:43]} 19. Nd1 {[%clk 0:01:51]}  Rc8 {[%clk 0:02:37]} 20. g4 {[%clk 0:01:41]}  Qc7 {[%clk 0:02:34]} 21. f4 {[%clk 0:01:36]}  Bb6 {[%clk 0:02:16]} 22. Bf3 {[%clk 0:01:27]}  Qxc1# {[%clk 0:02:14]} 0-1

[Event "December 12 Early 2023"]
[Site "https://www.chess.com"]
[Date "2023.12.12"]
[Round "8"]
[White "Materia, Marco"]
[Black "Sarana, Alexey"]
[Result "0-1"]
[Board "5"]
[TimeControl "180+1"]
[WhiteFideId "45150451"]
[BlackFideId "24133795"]
[WhiteElo "2846"]
[BlackElo "3033"]
[WhiteTeam "FRA"]
[BlackTeam "SRB"]
[WhiteClock "0:00:19"]
[BlackClock "0:01:47"]

1. d4 {[%clk 0:03:00]}  Nf6 {[%clk 0:02:59]} 2. c4 {[%clk 0:03:01]}  e6 {[%clk 0:03:00]} 3. Nf3 {[%clk 0:03:01]}  d5 {[%clk 0:03:00]} 4. Nc3 {[%clk 0:03:01]}  Nbd7 {[%clk 0:02:59]} 5. cxd5 {[%clk 0:02:57]}  exd5 {[%clk 0:03:00]} 6. Bg5 {[%clk 0:02:57]}  h6 {[%clk 0:02:59]} 7. Bh4 {[%clk 0:02:56]}  c6 {[%clk 0:02:59]} 8. e3 {[%clk 0:02:56]}  g5 {[%clk 0:02:59]} 9. Bg3 {[%clk 0:02:56]}  Nh5 {[%clk 0:03:00]} 10. Bd3 {[%clk 0:02:48]}  Nxg3 {[%clk 0:02:59]} 11. hxg3 {[%clk 0:02:47]}  Nb6 {[%clk 0:03:00]} 12. Ne5 {[%clk 0:02:41]}  Bd6 {[%clk 0:02:49]} 13. f4 {[%clk 0:02:36]}  Qe7 {[%clk 0:02:29]} 14. Qh5 {[%clk 0:02:32]}  Bxe5 {[%clk 0:02:25]} 15. fxe5 {[%clk 0:02:27]}  Be6 {[%clk 0:02:23]} 16. O-O-O {[%clk 0:02:20]}  O-O-O {[%clk 0:02:23]} 17. Kb1 {[%clk 0:02:12]}  Kb8 {[%clk 0:02:23]} 18. Rdf1 {[%clk 0:02:06]}  c5 {[%clk 0:02:08]} 19. Rf6 {[%clk 0:01:59]}  cxd4 {[%clk 0:02:01]} 20. exd4 {[%clk 0:01:57]}  Qb4 {[%clk 0:02:01]} 21. Rxh6 {[%clk 0:01:36]}  Rxh6 {[%clk 0:02:00]} 22. Qxh6 {[%clk 0:01:36]}  Qxd4 {[%clk 0:02:01]} 23. Bc2 {[%clk 0:01:20]}  Qxe5 {[%clk 0:01:58]} 24. Qh7 {[%clk 0:01:01]}  d4 {[%clk 0:01:56]} 25. Qe4 {[%clk 0:00:43]}  Qxg3 {[%clk 0:01:55]} 26. Ne2 {[%clk 0:00:41]}  Qe3 {[%clk 0:01:47]} 27. Rd1 {[%clk 0:00:37]}  Nc4 {[%clk 0:01:45]} 28. Qxe3 {[%clk 0:00:22]}  Nxe3 {[%clk 0:01:46]} 29. Rxd4 {[%clk 0:00:23]}  Rxd4 {[%clk 0:01:46]} 30. Nxd4 {[%clk 0:00:24]}  Nxg2 {[%clk 0:01:46]} 31. Nxe6 {[%clk 0:00:19]}  fxe6 {[%clk 0:01:46]} 32. Bb3 {[%clk 0:00:20]}  Nf4 {[%clk 0:01:47]} 33. Kc2 {[%clk 0:00:20]}  Kc7 {[%clk 0:01:47]} 34. Kd2 {[%clk 0:00:21]}  Kd6 {[%clk 0:01:47]} 35. Ke3 {[%clk 0:00:22]}  Nd5+ {[%clk 0:01:48]} 36. Kf3 {[%clk 0:00:22]}  Nf6 {[%clk 0:01:48]} 37. Bc2 {[%clk 0:00:21]}  e5 {[%clk 0:01:48]} 38. Bb1 {[%clk 0:00:20]}  e4+ {[%clk 0:01:48]} 39. Bxe4 {[%clk 0:00:20]}  Nxe4 {[%clk 0:01:48]} 40. Kxe4 {[%clk 0:00:21]}  Ke6 {[%clk 0:01:48]} 41. Kf3 {[%clk 0:00:19]}  Kf5 {[%clk 0:01:48]} 42. Kg3 {[%clk 0:00:19]}  Ke4 {[%clk 0:01:43]} 43. Kg4 {[%clk 0:00:19]}  Kd3 {[%clk 0:01:44]} 44. Kxg5 {[%clk 0:00:20]}  Kc2 {[%clk 0:01:44]} 45. b4 {[%clk 0:00:19]}  Kb2 {[%clk 0:01:45]} 46. Kf5 {[%clk 0:00:20]}  Kxa2 {[%clk 0:01:46]} 47. Ke5 {[%clk 0:00:21]}  Kb3 {[%clk 0:01:46]} 48. Kd6 {[%clk 0:00:19]}  Kxb4 {[%clk 0:01:47]} 49. Kc7 {[%clk 0:00:19]}  b5 {[%clk 0:01:47]} 0-1

[Event "December 12 Early 2023"]
[Site "https://www.chess.com"]
[Date "2023.12.12"]
[Round "8"]
[White "Vokhidov, Shamsiddin"]
[Black "Klymchuk, Andriy"]
[Result "1-0"]
[Board "6"]
[TimeControl "180+1"]
[WhiteFideId "14204223"]
[BlackFideId "14140063"]
[WhiteElo "3014"]
[BlackElo "2854"]
[WhiteTeam "UZB"]
[BlackTeam "UKR"]
[WhiteClock "0:02:45"]
[BlackClock "0:02:47"]

1. e4 {[%clk 0:03:00]}  c5 {[%clk 0:02:59]} 2. Nf3 {[%clk 0:03:01]}  Nc6 {[%clk 0:02:58]} 3. Bb5 {[%clk 0:03:00]}  g6 {[%clk 0:02:58]} 4. Bxc6 {[%clk 0:03:00]}  bxc6 {[%clk 0:02:58]} 5. O-O {[%clk 0:02:59]}  Bg7 {[%clk 0:02:58]} 6. Re1 {[%clk 0:03:00]}  Nh6 {[%clk 0:02:58]} 7. c3 {[%clk 0:02:59]}  O-O {[%clk 0:02:58]} 8. h3 {[%clk 0:02:59]}  d6 {[%clk 0:02:54]} 9. d4 {[%clk 0:02:58]}  cxd4 {[%clk 0:02:55]} 10. cxd4 {[%clk 0:02:59]}  f6 {[%clk 0:02:55]} 11. Nc3 {[%clk 0:02:58]}  Nf7 {[%clk 0:02:55]} 12. b3 {[%clk 0:02:58]}  Qa5 {[%clk 0:02:54]} 13. Bd2 {[%clk 0:02:56]}  Qh5 {[%clk 0:02:53]} 14. Rc1 {[%clk 0:02:55]}  Bd7 {[%clk 0:02:53]} 15. Ne2 {[%clk 0:02:55]}  Ng5 {[%clk 0:02:52]} 16. Bxg5 {[%clk 0:02:45]}  fxg5 {[%clk 0:02:53]} 17. Ng3 {[%clk 0:02:46]}  Qh4 {[%clk 0:02:47]} 18. Nxh4 {[%clk 0:02:45]} 1-0